fUSD/lending_fUSD_20260526
["ID","MTS","AMOUNT","RATE_DAILY","PERIOD"]
[423008475,1779745845000,-1700.0,0.000149,5]
[423008476,1779745845000,-200.0,0.000149,5]
[423008494,1779745845000,-30000.0,0.00014998,2]
[423008495,1779745845000,-82585.34712321,0.00014998,3]
[423008493,1779745845000,-162.687966,0.00014998,2]
[423008491,1779745845000,-162.687966,0.00014998,2]
[423008492,1779745845000,-162.687966,0.00014998,2]
[423008488,1779745845000,-500.0,0.00014998,2]
[423008489,1779745845000,-500.0,0.00014998,2]
[423008486,1779745845000,-442.2484019,0.00014998,2]
[423008490,1779745845000,-162.687966,0.00014998,2]
[423008480,1779745845000,-151.0,0.00014996,2]
[423008479,1779745845000,-10280.47785422,0.00014982,2]
[423008478,1779745845000,-2477.7574267,0.0001494,2]
[423008487,1779745845000,-500.0,0.00014998,2]
[423008681,1779745863000,-8088.60144888,0.00015,2]
[423008684,1779745863000,-1201187.6242553,0.00015,2]
[423008675,1779745863000,-1476.41,0.00015,2]
[423008685,1779745863000,-340459.1729759,0.00015,2]
[423008680,1779745863000,-172510.72112664,0.00015,2]
[423008676,1779745863000,-7858146.8849136,0.00015,2]
[423008678,1779745863000,-300.0,0.00015,2]
[423008679,1779745863000,-428.21908967,0.00015,2]
[423008689,1779745863000,-3041.61582676,0.00015,2]
[423008682,1779745863000,-4073487.63167379,0.00015,2]
[423008687,1779745863000,-1579417.71239859,0.00015,2]
[423008686,1779745863000,-20000.0,0.00015,2]
[423008688,1779745863000,-158440.02672653,0.00015,2]
[423008690,1779745863000,-46282.91529022,0.00015,2]
[423008683,1779745863000,-1025444.49616096,0.00015,2]
[423008692,1779745863000,-822.98952376,0.00015,2]
[423008695,1779745863000,-500.0,0.00015004,2]
[423008691,1779745863000,-150.0,0.00015,2]
[423008677,1779745863000,-2077.97992917,0.00015,2]
[423008674,1779745863000,-170.8,0.00015,2]
[423008666,1779745863000,-587663.68518233,0.00015,2]
[423008670,1779745863000,-7545.88445802,0.00015,7]
[423008696,1779745863000,-500.0,0.00015004,2]
[423008653,1779745863000,-3636.0,0.00014222,2]
[423008654,1779745863000,-15098.39783186,0.00014998,3]
[423008655,1779745863000,-10452.0878945,0.00014999,2]
[423008661,1779745863000,-162.68797,0.00014999,2]
[423008656,1779745863000,-3411.1362387,0.00014999,2]
[423008657,1779745863000,-1000000.0,0.00014999,2]
[423008660,1779745863000,-162.687966,0.00014999,2]
[423008658,1779745863000,-162.687966,0.00014999,2]
[423008659,1779745863000,-162.687966,0.00014999,2]
[423008665,1779745863000,-792789.3201193,0.00015,2]
[423008662,1779745863000,-4793798.55658372,0.00015,2]
[423008663,1779745863000,-665.99,0.00015,2]
[423008672,1779745863000,-180.0,0.00015,2]
[423008673,1779745863000,-1224240.51332617,0.00015,2]
[423008664,1779745863000,-199.79,0.00015,2]
[423008671,1779745863000,-3178506.92880987,0.00015,2]
[423008667,1779745863000,-602242.58453137,0.00015,2]
[423008669,1779745863000,-1127124.10450144,0.00015,2]
[423008668,1779745863000,-2500.0,0.00015,2]
[423008693,1779745863000,-150.0,0.00015,2]
[423008709,1779745863000,-250.0,0.000153,2]
[423008697,1779745863000,-500.0,0.00015004,2]
[423008714,1779745863000,-2351.0,0.00015486,2]
[423008724,1779745863000,-433.0,0.0001562,2]
[423008729,1779745863000,-250.0,0.00016,2]
[423008727,1779745863000,-3041.61582676,0.000159,2]
[423008730,1779745863000,-2000.0,0.00016,2]
[423008726,1779745863000,-3041.61582676,0.000158,2]
[423008728,1779745863000,-2500.0,0.00016,2]
[423008731,1779745863000,-300.0,0.00016,2]
[423008717,1779745863000,-478.7,0.00015563,2]
[423008725,1779745863000,-355.0,0.00015735,4]
[423008734,1779745863000,-150.0,0.00016,2]
[423008732,1779745863000,-150.0,0.00016,2]
[423008735,1779745863000,-150.0,0.00016,2]
[423008736,1779745863000,-317.554309,0.00016,2]
[423008738,1779745863000,-2000.0,0.0001602,2]
[423008737,1779745863000,-2000.0,0.0001601,2]
[423008739,1779745863000,-2589.67303,0.0001603,2]
[423008694,1779745863000,-1432.00480511,0.00015,2]
[423008723,1779745863000,-587.78,0.000156,2]
[423008720,1779745863000,-250.0,0.000156,2]
[423008733,1779745863000,-150.0,0.00016,2]
[423008715,1779745863000,-250.0,0.000155,2]
[423008699,1779745863000,-500.0,0.00015004,2]
[423008713,1779745863000,-713.50796734,0.000154,2]
[423008701,1779745863000,-500.0,0.00015004,2]
[423008698,1779745863000,-500.0,0.00015004,2]
[423008706,1779745863000,-350.0,0.00015135,2]
[423008700,1779745863000,-500.0,0.00015004,2]
[423008705,1779745863000,-2000.0,0.00015095,2]
[423008704,1779745863000,-900.0,0.00015068,2]
[423008708,1779745863000,-3041.61582676,0.000152,2]
[423008702,1779745863000,-500.0,0.00015004,2]
[423008703,1779745863000,-583.71645944,0.00015004,2]
[423008721,1779745863000,-3041.61582676,0.000156,2]
[423008711,1779745863000,-587.0,0.00015398,2]
[423008710,1779745863000,-3041.61582676,0.000153,2]
[423008722,1779745863000,-481.32,0.000156,2]
[423008712,1779745863000,-250.0,0.000154,2]
[423008718,1779745863000,-478.7,0.00015564,2]
[423008707,1779745863000,-250.0,0.000152,2]
[423008719,1779745863000,-478.7692772,0.00015567,2]
[423008716,1779745863000,-3041.61582676,0.000155,2]
[423008778,1779745864000,-177.315615,0.00016438,2]
[423008775,1779745864000,-177.315609,0.00016438,2]
[423008782,1779745864000,-151.0,0.00016438,2]
[423008776,1779745864000,-177.315609,0.00016438,2]
[423008772,1779745864000,-177.315609,0.00016438,2]
[423008771,1779745864000,-177.315609,0.00016438,2]
[423008773,1779745864000,-177.315609,0.00016438,2]
[423008774,1779745864000,-177.315609,0.00016438,2]
[423008777,1779745864000,-177.315609,0.00016438,2]
[423008770,1779745864000,-177.315609,0.00016438,2]
[423008781,1779745864000,-151.0,0.00016438,2]
[423008779,1779745864000,-151.0,0.00016438,2]
[423008787,1779745864000,-1228.155013,0.00016438,2]
[423008784,1779745864000,-151.0,0.00016438,2]
[423008785,1779745864000,-277.891386,0.00016438,2]
[423008794,1779745864000,-1228.155013,0.00016438,2]
[423008795,1779745864000,-1228.155013,0.00016438,2]
[423008783,1779745864000,-151.0,0.00016438,2]
[423008786,1779745864000,-1228.155013,0.00016438,2]
[423008788,1779745864000,-1228.155013,0.00016438,2]
[423008789,1779745864000,-1228.155013,0.00016438,2]
[423008791,1779745864000,-1228.155013,0.00016438,2]
[423008793,1779745864000,-1228.155013,0.00016438,2]
[423008790,1779745864000,-1228.155013,0.00016438,2]
[423008769,1779745864000,-177.315609,0.00016438,2]
[423008780,1779745864000,-151.0,0.00016438,2]
[423008762,1779745864000,-177.315609,0.00016438,2]
[423008748,1779745864000,-150.0,0.00016105,2]
[423008766,1779745864000,-177.315609,0.00016438,2]
[423008742,1779745864000,-150.0,0.00016105,2]
[423008743,1779745864000,-151.02245189,0.00016105,2]
[423008745,1779745864000,-150.0,0.00016105,2]
[423008744,1779745864000,-150.0,0.00016105,2]
[423008746,1779745864000,-150.0,0.00016105,2]
[423008741,1779745864000,-3041.61582676,0.000161,2]
[423008740,1779745864000,-1070.261951,0.000161,2]
[423008756,1779745864000,-1424.0,0.00016438,2]
[423008755,1779745864000,-3548.7,0.00016438,2]
[423008757,1779745864000,-164.57,0.00016438,2]
[423008758,1779745864000,-900.0,0.00016438,2]
[423008759,1779745864000,-177.315609,0.00016438,2]
[423008760,1779745864000,-177.315609,0.00016438,2]
[423008749,1779745864000,-150.0,0.00016105,2]
[423008751,1779745864000,-1108.33284923,0.00016299,2]
[423008792,1779745864000,-1228.155013,0.00016438,2]
[423008750,1779745864000,-3041.61582676,0.000162,2]
[423008747,1779745864000,-152.18128685,0.00016105,2]
[423008753,1779745864000,-3041.61582676,0.000164,2]
[423008754,1779745864000,-627.37514008,0.00016438,2]
[423008761,1779745864000,-177.315609,0.00016438,2]
[423008767,1779745864000,-177.315609,0.00016438,2]
[423008765,1779745864000,-177.315609,0.00016438,2]
[423008764,1779745864000,-177.315609,0.00016438,2]
[423008763,1779745864000,-177.315609,0.00016438,2]
[423008768,1779745864000,-177.315609,0.00016438,2]
[423008752,1779745864000,-1476.41,0.000164,2]
[423008796,1779745864000,-1228.155013,0.00016438,2]
[423008838,1779745864000,-931.0,0.00017222,2]
[423008797,1779745864000,-1228.155013,0.00016438,2]
[423008830,1779745864000,-691.0,0.00017221,2]
[423008831,1779745864000,-626.0,0.00017222,2]
[423008829,1779745864000,-3292.0,0.00017034,2]
[423008836,1779745864000,-1271.0,0.00017222,2]
[423008837,1779745864000,-150.0,0.00017222,2]
[423008840,1779745864000,-1568.0,0.0001726,2]
[423008839,1779745864000,-418.0,0.00017222,2]
[423008834,1779745864000,-928.0,0.00017222,2]
[423008835,1779745864000,-519.0,0.00017222,2]
[423008833,1779745864000,-3547.0,0.00017222,2]
[423008832,1779745864000,-1355.0,0.00017222,2]
[423008841,1779745864000,-1424.0,0.0001726,2]
[423008825,1779745864000,-9999.99,0.00016922,2]
[423008842,1779745864000,-150.0,0.00017288,2]
[423008845,1779745864000,-500.0,0.00017534,2]
[423008843,1779745864000,-150.0,0.00017288,2]
[423008844,1779745864000,-150.0,0.00017288,2]
[423008847,1779745864000,-195.14,0.00017573,2]
[423008848,1779745864000,-421.89,0.00017852,2]
[423008850,1779745864000,-2500.0,0.00018,2]
[423008849,1779745864000,-1568.0,0.00017945,2]
[423008852,1779745864000,-350.0,0.00018,2]
[423008853,1779745864000,-200.0,0.00018,2]
[423008855,1779745864000,-150.0,0.00018079,2]
[423008854,1779745864000,-1122.16,0.00018,2]
[423008803,1779745864000,-1228.155013,0.00016438,2]
[423008846,1779745864000,-1098.33,0.00017572,2]
[423008824,1779745864000,-9999.99,0.00016922,2]
[423008851,1779745864000,-26265.85367527,0.00018,2]
[423008823,1779745864000,-150.99,0.00016922,2]
[423008821,1779745864000,-200.0,0.000169,7]
[423008798,1779745864000,-1228.155013,0.00016438,2]
[423008801,1779745864000,-1228.155013,0.00016438,2]
[423008800,1779745864000,-1228.155013,0.00016438,2]
[423008802,1779745864000,-1228.155013,0.00016438,2]
[423008805,1779745864000,-1228.155017,0.00016438,2]
[423008816,1779745864000,-200.0,0.000169,7]
[423008815,1779745864000,-200.0,0.000169,7]
[423008806,1779745864000,-1098.33,0.00016474,2]
[423008804,1779745864000,-1228.155013,0.00016438,2]
[423008807,1779745864000,-49482.06,0.00016474,2]
[423008808,1779745864000,-168.2,0.00016712,2]
[423008811,1779745864000,-823.0,0.0001689,2]
[423008799,1779745864000,-1228.155013,0.00016438,2]
[423008812,1779745864000,-656.36,0.000169,2]
[423008810,1779745864000,-478.7,0.00016821,2]
[423008826,1779745864000,-9666.5,0.00016922,2]
[423008820,1779745864000,-200.0,0.000169,7]
[423008822,1779745864000,-200.61386916,0.000169,7]
[423008827,1779745864000,-246.0,0.00016937,2]
[423008819,1779745864000,-200.0,0.000169,7]
[423008828,1779745864000,-2500.0,0.00017,2]
[423008818,1779745864000,-200.0,0.000169,7]
[423008813,1779745864000,-200.0,0.000169,7]
[423008814,1779745864000,-200.0,0.000169,7]
[423008809,1779745864000,-2000.0,0.00016772,2]
[423008817,1779745864000,-200.0,0.000169,7]
[423008879,1779745865000,-357.0,0.00019,2]
[423008880,1779745865000,-1789.0,0.00019,2]
[423008878,1779745865000,-208.0,0.00019,2]
[423008882,1779745865000,-2067.0,0.00019,2]
[423008884,1779745865000,-544.0,0.00019,2]
[423008885,1779745865000,-157.0,0.00019,2]
[423008883,1779745865000,-1416.15810826,0.00019,2]
[423008887,1779745865000,-3000.0,0.00019178,2]
[423008886,1779745865000,-1589.0,0.00019033,2]
[423008892,1779745865000,-245.931294,0.00019178,2]
[423008889,1779745865000,-245.931294,0.00019178,2]
[423008897,1779745865000,-245.931294,0.00019178,2]
[423008890,1779745865000,-245.931294,0.00019178,2]
[423008888,1779745865000,-245.931294,0.00019178,2]
[423008891,1779745865000,-245.931294,0.00019178,2]
[423008894,1779745865000,-245.931294,0.00019178,2]
[423008893,1779745865000,-245.931294,0.00019178,2]
[423008881,1779745865000,-164.0,0.00019,2]
[423008896,1779745865000,-245.931294,0.00019178,2]
[423008898,1779745865000,-245.931294,0.00019178,2]
[423008877,1779745865000,-1497.0,0.00019,2]
[423008863,1779745865000,-2000.0,0.00018449,2]
[423008875,1779745865000,-154.0,0.00019,2]
[423008895,1779745865000,-245.931294,0.00019178,2]
[423008857,1779745865000,-1476.41,0.000181,2]
[423008864,1779745865000,-171.3736,0.000185,2]
[423008856,1779745865000,-712.806284,0.00018082,2]
[423008858,1779745865000,-5016.45,0.00018356,2]
[423008861,1779745865000,-478.7,0.00018405,2]
[423008860,1779745865000,-478.7,0.00018405,2]
[423008859,1779745865000,-478.7,0.00018405,2]
[423008862,1779745865000,-3548.7,0.0001841,2]
[423008866,1779745865000,-785.868171,0.0001863,2]
[423008865,1779745865000,-1152.0,0.00018527,2]
[423008867,1779745865000,-24119.0,0.00018651,2]
[423008874,1779745865000,-574.87138438,0.00019,2]
[423008870,1779745865000,-2500.0,0.00019,2]
[423008872,1779745865000,-109101.18257664,0.00019,2]
[423008868,1779745865000,-2316.0,0.00018713,2]
[423008869,1779745865000,-2796.0,0.00018738,2]
[423008871,1779745865000,-372.71,0.00019,2]
[423008873,1779745865000,-109101.18257664,0.00019,2]
[423008876,1779745865000,-452.0,0.00019,2]
[423008901,1779745865000,-245.931294,0.00019178,2]
[423008902,1779745865000,-245.931294,0.00019178,2]
[423008940,1779745865000,-598.0,0.0002,2]
[423008924,1779745865000,-151.0,0.00019178,2]
[423008925,1779745865000,-151.0,0.00019178,2]
[423008926,1779745865000,-151.0,0.00019178,2]
[423008928,1779745865000,-151.0,0.00019178,2]
[423008927,1779745865000,-151.0,0.00019178,2]
[423008930,1779745865000,-1476.41,0.000199,2]
[423008931,1779745865000,-223.3,0.0002,9]
[423008935,1779745865000,-2500.0,0.0002,2]
[423008934,1779745865000,-228.66,0.0002,5]
[423008933,1779745865000,-153.81315042,0.0002,2]
[423008937,1779745865000,-479.275,0.0002,30]
[423008938,1779745865000,-2990.77067492,0.0002,7]
[423008939,1779745865000,-538.48760064,0.0002,7]
[423008941,1779745865000,-626.0,0.0002,2]
[423008942,1779745865000,-5392.01480492,0.0002,2]
[423008943,1779745865000,-2565.111091,0.0002,2]
[423008944,1779745865000,-2000.0,0.0002,2]
[423008946,1779745865000,-154.0,0.0002,2]
[423008945,1779745865000,-400.0,0.0002,2]
[423008903,1779745865000,-245.931294,0.00019178,2]
[423008936,1779745865000,-500.0,0.0002,30]
[423008932,1779745865000,-1000.0,0.0002,2]
[423008929,1779745865000,-161.51245,0.00019178,2]
[423008918,1779745865000,-151.0,0.00019178,2]
[423008899,1779745865000,-245.931294,0.00019178,2]
[423008905,1779745865000,-245.931294,0.00019178,2]
[423008904,1779745865000,-245.931294,0.00019178,2]
[423008907,1779745865000,-245.931296,0.00019178,2]
[423008909,1779745865000,-151.0,0.00019178,2]
[423008923,1779745865000,-151.0,0.00019178,2]
[423008906,1779745865000,-245.931294,0.00019178,2]
[423008911,1779745865000,-151.0,0.00019178,2]
[423008900,1779745865000,-245.931294,0.00019178,2]
[423008910,1779745865000,-151.0,0.00019178,2]
[423008908,1779745865000,-151.0,0.00019178,2]
[423008912,1779745865000,-151.0,0.00019178,2]
[423008914,1779745865000,-151.0,0.00019178,2]
[423008915,1779745865000,-151.0,0.00019178,2]
[423008916,1779745865000,-151.0,0.00019178,2]
[423008922,1779745865000,-151.0,0.00019178,2]
[423008920,1779745865000,-151.0,0.00019178,2]
[423008919,1779745865000,-219.826537,0.00019178,2]
[423008917,1779745865000,-151.0,0.00019178,2]
[423008913,1779745865000,-151.0,0.00019178,2]
[423008921,1779745865000,-151.0,0.00019178,2]
[423008988,1779745866000,-601.3376128,0.00020104,2]
[423008985,1779745866000,-279.9045709,0.00020104,2]
[423008984,1779745866000,-151.0,0.00020104,2]
[423008989,1779745866000,-1191.11104074,0.00020104,2]
[423008986,1779745866000,-500.0,0.00020104,2]
[423008983,1779745866000,-151.0,0.00020104,2]
[423008981,1779745866000,-168.83285969,0.00020104,2]
[423008982,1779745866000,-174.61919141,0.00020104,2]
[423008980,1779745866000,-151.0,0.00020104,2]
[423008987,1779745866000,-151.0,0.00020104,2]
[423008978,1779745866000,-174.61919141,0.00020104,2]
[423008979,1779745866000,-182.56298133,0.00020104,2]
[423008990,1779745866000,-801.25407653,0.00020104,2]
[423009004,1779745866000,-151.0,0.00020104,2]
[423008994,1779745866000,-174.61919141,0.00020104,2]
[423008993,1779745866000,-151.0,0.00020104,2]
[423008992,1779745866000,-1734.62772924,0.00020104,2]
[423009000,1779745866000,-151.0,0.00020104,2]
[423008996,1779745866000,-152.0,0.00020104,2]
[423009001,1779745866000,-152.0,0.00020104,2]
[423009002,1779745866000,-7965.41053267,0.00020104,2]
[423008997,1779745866000,-578.20924308,0.00020104,2]
[423008999,1779745866000,-500.0,0.00020104,2]
[423008995,1779745866000,-604.35502153,0.00020104,2]
[423008998,1779745866000,-151.0,0.00020104,2]
[423009003,1779745866000,-191.62533551,0.00020104,2]
[423008977,1779745866000,-743.50770149,0.00020104,2]
[423008991,1779745866000,-200.0,0.00020104,2]
[423008970,1779745866000,-181.1728233,0.00020104,2]
[423008954,1779745866000,-150.0,0.0002,10]
[423008972,1779745866000,-153.3044041,0.00020104,2]
[423008951,1779745866000,-1789.0,0.0002,2]
[423008947,1779745866000,-452.0,0.0002,2]
[423008949,1779745866000,-208.0,0.0002,2]
[423008950,1779745866000,-357.0,0.0002,2]
[423008948,1779745866000,-1497.0,0.0002,2]
[423008952,1779745866000,-164.0,0.0002,2]
[423008953,1779745866000,-2067.0,0.0002,2]
[423008957,1779745866000,-157.0,0.0002,2]
[423008955,1779745866000,-544.0,0.0002,2]
[423008956,1779745866000,-853.0,0.0002,2]
[423008958,1779745866000,-200.0,0.0002,2]
[423008962,1779745866000,-155.16898355,0.0002,20]
[423008968,1779745866000,-360.33232621,0.00020104,2]
[423008959,1779745866000,-1596.0,0.0002,2]
[423008960,1779745866000,-7541.78,0.0002,2]
[423008964,1779745866000,-5014.80464464,0.0002001,2]
[423008963,1779745866000,-2000.0,0.0002,7]
[423008965,1779745866000,-2000.0,0.0002001,2]
[423008967,1779745866000,-2875.995464,0.0002003,2]
[423008966,1779745866000,-2000.0,0.0002002,2]
[423008969,1779745866000,-3469.25545848,0.00020104,2]
[423008975,1779745866000,-174.61919141,0.00020104,2]
[423008974,1779745866000,-151.0,0.00020104,2]
[423008971,1779745866000,-578.20924308,0.00020104,2]
[423008976,1779745866000,-151.0,0.00020104,2]
[423008973,1779745866000,-200.0,0.00020104,2]
[423008961,1779745866000,-1484.0,0.0002,2]
[423009006,1779745866000,-152.0,0.00020104,2]
[423009048,1779745866000,-151.0,0.00020104,2]
[423009011,1779745866000,-500.0,0.00020104,2]
[423009037,1779745866000,-152.0,0.00020104,2]
[423009036,1779745866000,-151.0,0.00020104,2]
[423009038,1779745866000,-500.0,0.00020104,2]
[423009042,1779745866000,-500.0,0.00020104,2]
[423009044,1779745866000,-151.0,0.00020104,2]
[423009043,1779745866000,-151.0,0.00020104,2]
[423009046,1779745866000,-500.0,0.00020104,2]
[423009045,1779745866000,-152.0,0.00020104,2]
[423009047,1779745866000,-151.0,0.00020104,2]
[423009051,1779745866000,-151.0,0.00020104,2]
[423009052,1779745866000,-151.0,0.00020104,2]
[423009053,1779745866000,-152.0,0.00020104,2]
[423009049,1779745866000,-152.0,0.00020104,2]
[423009050,1779745866000,-500.0,0.00020104,2]
[423009054,1779745866000,-500.0,0.00020104,2]
[423009056,1779745866000,-151.0,0.00020104,2]
[423009055,1779745866000,-151.0,0.00020104,2]
[423009063,1779745866000,-151.0,0.00020159,2]
[423009064,1779745866000,-8260.13072238,0.00020159,2]
[423009062,1779745866000,-599.60298507,0.00020159,2]
[423009060,1779745866000,-500.0,0.00020104,2]
[423009061,1779745866000,-2000.0,0.00020126,2]
[423009059,1779745866000,-500.0,0.00020104,2]
[423009058,1779745866000,-500.0,0.00020104,2]
[423009057,1779745866000,-152.0,0.00020104,2]
[423009005,1779745866000,-500.0,0.00020104,2]
[423009066,1779745866000,-151.0,0.00020214,2]
[423009039,1779745866000,-151.0,0.00020104,2]
[423009034,1779745866000,-151.0,0.00020104,2]
[423009065,1779745866000,-621.78829552,0.00020214,2]
[423009035,1779745866000,-500.0,0.00020104,2]
[423009040,1779745866000,-151.0,0.00020104,2]
[423009008,1779745866000,-151.0,0.00020104,2]
[423009007,1779745866000,-151.0,0.00020104,2]
[423009010,1779745866000,-151.0,0.00020104,2]
[423009009,1779745866000,-152.0,0.00020104,2]
[423009012,1779745866000,-151.0,0.00020104,2]
[423009013,1779745866000,-152.0,0.00020104,2]
[423009015,1779745866000,-500.0,0.00020104,2]
[423009016,1779745866000,-151.0,0.00020104,2]
[423009018,1779745866000,-151.0,0.00020104,2]
[423009028,1779745866000,-152.0,0.00020104,2]
[423009023,1779745866000,-151.0,0.00020104,2]
[423009020,1779745866000,-152.0,0.00020104,2]
[423009024,1779745866000,-152.0,0.00020104,2]
[423009014,1779745866000,-151.0,0.00020104,2]
[423009019,1779745866000,-151.0,0.00020104,2]
[423009030,1779745866000,-500.0,0.00020104,2]
[423009033,1779745866000,-152.0,0.00020104,2]
[423009041,1779745866000,-152.0,0.00020104,2]
[423009032,1779745866000,-151.0,0.00020104,2]
[423009029,1779745866000,-151.0,0.00020104,2]
[423009031,1779745866000,-151.0,0.00020104,2]
[423009021,1779745866000,-151.0,0.00020104,2]
[423009027,1779745866000,-151.0,0.00020104,2]
[423009025,1779745866000,-151.0,0.00020104,2]
[423009022,1779745866000,-500.0,0.00020104,2]
[423009017,1779745866000,-152.0,0.00020104,2]
[423009026,1779745866000,-500.0,0.00020104,2]
[423009102,1779745867000,-2760.44,0.00020548,2]
[423009107,1779745867000,-5000.0,0.00020579,2]
[423009104,1779745867000,-1101.84,0.00020555,7]
[423009111,1779745867000,-801.85129954,0.00020599,2]
[423009097,1779745867000,-550.0,0.00020513,2]
[423009103,1779745867000,-17961.8,0.00020548,2]
[423009101,1779745867000,-273.52944446,0.00020544,2]
[423009100,1779745867000,-773.24136889,0.00020544,2]
[423009096,1779745867000,-550.0,0.00020513,2]
[423009099,1779745867000,-418.0,0.00020513,2]
[423009112,1779745867000,-200.0,0.00020652,2]
[423009110,1779745867000,-150.26617762,0.0002058,2]
[423009115,1779745867000,-196.56022363,0.00020652,2]
[423009105,1779745867000,-9368.01298948,0.00020579,2]
[423009109,1779745867000,-150.0,0.0002058,2]
[423009113,1779745867000,-181.08010149,0.00020652,2]
[423009119,1779745867000,-1235.18214925,0.00020652,2]
[423009123,1779745867000,-862.28603014,0.00020709,2]
[423009122,1779745867000,-831.51979762,0.00020654,2]
[423009124,1779745867000,-894.19061325,0.00020764,2]
[423009114,1779745867000,-771.01748644,0.00020652,2]
[423009116,1779745867000,-181.08010149,0.00020652,2]
[423009120,1779745867000,-1798.80895522,0.00020652,2]
[423009121,1779745867000,-181.08010149,0.00020652,2]
[423009095,1779745867000,-550.0,0.00020513,2]
[423009108,1779745867000,-5000.0,0.00020579,2]
[423009094,1779745867000,-550.0,0.00020513,2]
[423009081,1779745867000,-668.65185756,0.00020324,2]
[423009093,1779745867000,-550.0,0.00020513,2]
[423009117,1779745867000,-290.26104002,0.00020652,2]
[423009067,1779745867000,-8565.75555911,0.00020214,2]
[423009069,1779745867000,-1355.0,0.00020222,2]
[423009068,1779745867000,-626.0,0.00020222,2]
[423009070,1779745867000,-3547.0,0.00020222,2]
[423009076,1779745867000,-644.79446245,0.00020269,2]
[423009075,1779745867000,-418.0,0.00020222,2]
[423009073,1779745867000,-1271.0,0.00020222,2]
[423009071,1779745867000,-928.0,0.00020222,2]
[423009072,1779745867000,-519.0,0.00020222,2]
[423009074,1779745867000,-931.0,0.00020222,2]
[423009077,1779745867000,-151.0,0.00020269,2]
[423009098,1779745867000,-550.0,0.00020513,2]
[423009080,1779745867000,-1613.0,0.00020322,2]
[423009079,1779745867000,-150.0,0.00020288,2]
[423009088,1779745867000,-745.65223615,0.00020489,2]
[423009087,1779745867000,-151.0,0.00020434,2]
[423009082,1779745867000,-151.0,0.00020324,2]
[423009084,1779745867000,-151.0,0.00020379,2]
[423009086,1779745867000,-719.04747942,0.00020434,2]
[423009083,1779745867000,-693.39197629,0.00020379,2]
[423009085,1779745867000,-3548.7,0.00020381,2]
[423009089,1779745867000,-151.0,0.00020489,2]
[423009090,1779745867000,-550.0,0.00020513,2]
[423009092,1779745867000,-550.0,0.00020513,2]
[423009091,1779745867000,-550.0,0.00020513,2]
[423009078,1779745867000,-7440.75452456,0.00020269,2]
[423009118,1779745867000,-200.0,0.00020652,2]
[423009106,1779745867000,-5000.0,0.00020579,2]
[423009127,1779745867000,-6612.41572113,0.000209,30]
[423009156,1779745867000,-200.0,0.000212,2]
[423009153,1779745867000,-300.0,0.00021142,2]
[423009157,1779745867000,-187.78006524,0.000212,2]
[423009159,1779745867000,-187.78006524,0.000212,2]
[423009158,1779745867000,-527.1718121,0.000212,2]
[423009160,1779745867000,-202.23171163,0.000212,2]
[423009164,1779745867000,-187.78006524,0.000212,2]
[423009163,1779745867000,-1865.36488656,0.000212,2]
[423009165,1779745867000,-6471.69,0.0002137,2]
[423009166,1779745867000,-3597.61791044,0.00021473,2]
[423009170,1779745867000,-200.0,0.00021748,2]
[423009171,1779745867000,-151.38033799,0.00021748,2]